[Event "2nd FIDE WCC Rapid G10"]
[Site "Minsk"]
[Date "2018.06.22"]
[Round "3"]
[White "Vu, My Linh"]
[Black "Shvedova, Alexandra"]
[Result "0-1"]
[ECO "D31"]
[WhiteElo "1319"]
[BlackElo "1758"]
[Annotator "NA RC"]
[PlyCount "154"]
[EventDate "2018.06.22"]
[EventType "rapid"]
[EventCountry "BLR"]
[SourceTitle "playchess.com"]
[Source "ChessBase"]
[SourceQuality "1"]
[TimeControl "600+5"]

1. d4 {[%emt 0:00:00]} d5 {[%emt 0:00:01]} 2. c4 {[%emt 0:00:00]} e6 {[%emt 0:00:00]} 3. Nc3 {[%emt 0:00:00]} Be7 {[%emt 0:00:01]} 4. cxd5 {[%emt 0:00:01]} exd5 {[%emt 0:00:01]} 5. Bf4 {[%emt 0:00:02]} Nf6 {[%emt 0:00:01]} 6. Nf3 {[%emt 0:00:03]} O-O {[%emt 0:00:04]} 7. e3 {[%emt 0:00:03]} c5 {[%emt 0:00:16]} 8. Be2 {[%emt 0:00:07]} Nc6 {[%emt 0:00:09]} 9. O-O {[%emt 0:00:04]} Bf5 {[%emt 0:00:12]} 10. Ne5 {[%emt 0:00:24]} cxd4 {[%emt 0:00:53]} 11. exd4 {[%emt 0:00:04]} Qb6 {[%emt 0:00:18]} 12. Nxc6 {[%emt 0:00:23]} bxc6 {[%emt 0:00:05]} 13. Qd2 {[%emt 0:00:23]} Bb4 {[%emt 0:00:13]} 14. a3 {[%emt 0:00:29]} Ne4 {[%emt 0:00:41]} 15. Qe3 {[%emt 0:00:05]} Bxc3 {[%emt 0:00:12]} 16. bxc3 {[%emt 0:00:02]} Rfe8 {[%emt 0:00:09]} 17. Qf3 {[%emt 0:00:42]} Nxc3 {[%emt 0:00:17]} 18. Qxc3 {[%emt 0:01:11]} Rxe2 {[%emt 0:00:02]} 19. Rfe1 {[%emt 0:00:08]} Re4 {[%emt 0:00:40]} 20. Be3 {[%emt 0:00:32]} Rc8 {[%emt 0:00:47]} 21. Rab1 {[%emt 0:00:14]} Qc7 {[%emt 0:00:01]} 22. Rb3 {[%emt 0:00:20]} Rh4 {[%emt 0:00:28]} 23. g3 {[%emt 0:00:31]} Re4 {[%emt 0:00:31]} 24. Qb2 {[%emt 0:00:32]} Re7 {[%emt 0:00:27]} 25. Rc1 {[%emt 0:00:12]} Qd7 {[%emt 0:00:21]} 26. Bd2 {[%emt 0:00:46]} Re2 {[%emt 0:00:43]} 27. Qc3 {[%emt 0:00:42]} Be4 {[%emt 0:00:50]} 28. Kf1 {[%emt 0:01:09]} Qg4 {[%emt 0:00:02]} 29. h3 {[%emt 0:00:29]} Qf3 {[%emt 0:00:26]} 30. Qxf3 {[%emt 0:00:41]} Bxf3 {[%emt 0:00:02]} 31. Bf4 {[%emt 0:00:41]} Bh5 {[%emt 0:01:01]} 32. g4 {[%emt 0:00:02]} Bxg4 {[%emt 0:00:01]} 33. hxg4 {[%emt 0:00:01]} Re4 {[%emt 0:00:01]} 34. Be5 {[%emt 0:00:10]} Rxg4 {[%emt 0:00:10]} 35. Rbc3 {[%emt 0:00:02]} Rg6 {[%emt 0:00:06]} 36. Bg3 {[%emt 0:00:10]} Re6 {[%emt 0:00:15]} 37. Kg2 {[%emt 0:00:03]} g5 {[%emt 0:00:12]} 38. R1c2 {[%emt 0:00:02]} h5 {[%emt 0:00:06]} 39. f4 {[%emt 0:00:06]} h4 {[%emt 0:00:16]} 40. Bh2 {[%emt 0:00:01]} g4 {[%emt 0:00:11]} 41. f5 {[%emt 0:00:03]} Rf6 {[%emt 0:00:13]} 42. Be5 {[%emt 0:00:12]} Rxf5 {[%emt 0:00:09]} 43. Rxc6 {[%emt 0:00:02]} Rxc6 {[%emt 0:00:59]} 44. Rxc6 Kh7 {[%emt 0:00:16]} 45. Rc8 {[%emt 0:00:07]} Rh5 {[%emt 0:00:12]} 46. Rh8+ {[%emt 0:00:12]} Kg6 {[%emt 0:00:02]} 47. Rg8+ {[%emt 0:00:17]} Kf5 {[%emt 0:00:02]} 48. Rg7 {[%emt 0:00:05]} f6 {[%emt 0:00:15]} 49. Rf7 {[%emt 0:00:18]} Rh6 {[%emt 0:00:02]} 50. Bd6 {[%emt 0:00:16]} Ke6 {[%emt 0:00:08]} 51. Bf4 {[%emt 0:00:06]} Kxf7 {[%emt 0:00:05]} 52. Bxh6 {[%emt 0:00:02]} Kg6 {[%emt 0:00:02]} 53. Bf4 {[%emt 0:00:01]} Kf5 {[%emt 0:00:03]} 54. Be3 {[%emt 0:00:05]} Ke4 {[%emt 0:00:03]} 55. Bf2 {[%emt 0:00:02]} h3+ {[%emt 0:00:22]} 56. Kg3 {[%emt 0:00:08]} f5 {[%emt 0:00:01]} 57. Bg1 {[%emt 0:00:06]} a6 {[%emt 0:00:06]} 58. a4 {[%emt 0:00:07]} a5 {[%emt 0:00:01]} 59. Kh4 {[%emt 0:00:41]} Kf3 {[%emt 0:00:04]} 60. Kg5 {[%emt 0:00:06]} f4 {[%emt 0:00:01]} 61. Kh4 {[%emt 0:00:05]} Kg2 {[%emt 0:00:17]} 62. Kxg4 {[%emt 0:00:08]} Kxg1 {[%emt 0:00:01]} 63. Kxh3 {[%emt 0:00:05]} f3 {[%emt 0:00:01]} 64. Kg3 {[%emt 0:00:02]} f2 {[%emt 0:00:00]} 65. Kg4 {[%emt 0:00:01]} f1=Q {[%emt 0:00:02]} 66. Kg5 {[%emt 0:00:02]} Qf7 {[%emt 0:00:01]} 67. Kg4 {[%emt 0:00:01]} Qf6 {[%emt 0:00:01]} 68. Kg3 {[%emt 0:00:01]} Qf5 {[%emt 0:00:13]} 69. Kh4 {[%emt 0:00:03]} Qf4+ {[%emt 0:00:16]} 70. Kh5 {[%emt 0:00:02]} Kg2 {[%emt 0:00:04]} 71. Kg6 {[%emt 0:00:02]} Kg3 {[%emt 0:00:01]} 72. Kh7 {[%emt 0:00:03]} Qf6 {[%emt 0:00:04]} 73. Kg8 {[%emt 0:00:02]} Kg4 {[%emt 0:00:02]} 74. Kh7 {[%emt 0:00:02]} Kg5 {[%emt 0:00:06]} 75. Kg8 {[%emt 0:00:01]} Qe7 {[%emt 0:00:01]} 76. Kh8 {[%emt 0:00:02]} Kg6 {[%emt 0:00:02]} 77. Kg8 {[%emt 0:00:02]} Qe8# 0-1

[Event "2nd FIDE WCC Rapid G10"]
[Site "Minsk"]
[Date "2018.06.22"]
[Round "3"]
[White "Mai, Hieu Linh"]
[Black "Zavivaeva, Evelina"]
[Result "0-1"]
[ECO "C03"]
[WhiteElo "1313"]
[BlackElo "1390"]
[Annotator "NA RC"]
[PlyCount "178"]
[EventDate "2018.06.22"]
[EventType "rapid"]
[EventCountry "BLR"]
[SourceTitle "playchess.com"]
[Source "ChessBase"]
[SourceQuality "1"]
[TimeControl "600+5"]

1. e4 {[%emt 0:00:00]} e6 {[%emt 0:00:01]} 2. d4 {[%emt 0:00:01]} d5 {[%emt 0:00:01]} 3. Nd2 {[%emt 0:00:06]} Be7 {[%emt 0:00:03]} 4. exd5 {[%emt 0:00:16]} exd5 {[%emt 0:00:04]} 5. Ngf3 {[%emt 0:00:09]} Nf6 {[%emt 0:00:34]} 6. Bd3 {[%emt 0:00:03]} b6 {[%emt 0:00:20]} 7. c3 {[%emt 0:00:02]} O-O {[%emt 0:00:07]} 8. O-O {[%emt 0:00:07]} Ba6 {[%emt 0:00:00]} 9. Bxa6 {[%emt 0:00:10]} Nxa6 {[%emt 0:00:01]} 10. Ne5 {[%emt 0:00:19]} Nb8 {[%emt 0:00:29]} 11. Re1 {[%emt 0:00:05]} Bd6 {[%emt 0:00:24]} 12. Ndf3 {[%emt 0:00:08]} c5 13. dxc5 {[%emt 0:00:21]} bxc5 {[%emt 0:00:42]} 14. Bg5 {[%emt 0:00:16]} Be7 {[%emt 0:02:58]} 15. Bxf6 {[%emt 0:00:22]} Bxf6 {[%emt 0:00:09]} 16. Ng4 {[%emt 0:00:13]} Be7 {[%emt 0:03:39]} 17. Re5 {[%emt 0:00:25]} Nc6 {[%emt 0:00:54]} 18. Rxd5 {[%emt 0:00:04]} Qb6 {[%emt 0:00:08]} 19. Qc2 {[%emt 0:00:24]} Rfd8 {[%emt 0:00:29]} 20. Rh5 {[%emt 0:00:15]} g6 {[%emt 0:00:33]} 21. Rh3 {[%emt 0:00:11]} Bf8 {[%emt 0:00:08]} 22. Ng5 {[%emt 0:00:36]} Bg7 {[%emt 0:00:05]} 23. Nxh7 {[%emt 0:00:07]} Ne7 {[%emt 0:00:03]} 24. g3 {[%emt 0:00:25]} Nf5 {[%emt 0:00:04]} 25. Ng5 {[%emt 0:00:17]} Qc7 {[%emt 0:00:05]} 26. Ne4 {[%emt 0:00:20]} Qc6 {[%emt 0:00:06]} 27. Re1 {[%emt 0:00:10]} Re8 {[%emt 0:00:05]} 28. Re2 {[%emt 0:00:21]} Rac8 {[%emt 0:00:04]} 29. Ng5 {[%emt 0:00:11]} Rxe2 {[%emt 0:00:07]} 30. Qxe2 {[%emt 0:00:02]} Re8 {[%emt 0:00:04]} 31. Qf1 {[%emt 0:00:36]} a5 {[%emt 0:00:05]} 32. f3 {[%emt 0:00:19]} c4 {[%emt 0:00:04]} 33. Ne4 {[%emt 0:00:12]} Qb6+ {[%emt 0:00:04]} 34. Qf2 {[%emt 0:00:07]} Qxf2+ {[%emt 0:00:07]} 35. Kxf2 {[%emt 0:00:05]} Kf8 {[%emt 0:00:06]} 36. Nef6 {[%emt 0:00:08]} Bxf6 {[%emt 0:00:04]} 37. Nxf6 {[%emt 0:00:03]} Re6 {[%emt 0:00:03]} 38. Nd7+ {[%emt 0:00:17]} Ke7 {[%emt 0:00:06]} 39. Nc5 {[%emt 0:00:03]} Rc6 {[%emt 0:00:05]} 40. Ne4 {[%emt 0:00:09]} Rb6 {[%emt 0:00:04]} 41. g4 {[%emt 0:00:18]} Ng7 {[%emt 0:00:06]} 42. a4 {[%emt 0:00:33]} Rxb2+ {[%emt 0:00:04]} 43. Ke3 {[%emt 0:00:03]} Ra2 {[%emt 0:00:05]} 44. Nc5 {[%emt 0:00:10]} Ne6 {[%emt 0:00:03]} 45. Nxe6 {[%emt 0:00:22]} Kxe6 {[%emt 0:00:04]} 46. Rh8 {[%emt 0:00:08]} Rxa4 {[%emt 0:00:02]} 47. Kd4 {[%emt 0:00:07]} f5 {[%emt 0:00:11]} 48. gxf5+ {[%emt 0:00:07]} Kxf5 {[%emt 0:00:04]} 49. Rf8+ {[%emt 0:00:14]} Ke6 {[%emt 0:00:08]} 50. Rc8 {[%emt 0:00:09]} Ra2 {[%emt 0:00:05]} 51. h4 {[%emt 0:00:05]} Rh2 {[%emt 0:00:06]} 52. Kxc4 {[%emt 0:00:19]} Rxh4+ {[%emt 0:00:01]} 53. Kb3 {[%emt 0:00:02]} a4+ {[%emt 0:00:05]} 54. Ka3 {[%emt 0:00:01]} Rf4 {[%emt 0:00:06]} 55. Rc6+ {[%emt 0:00:12]} Kf5 {[%emt 0:00:06]} 56. Rc5+ {[%emt 0:00:05]} Kf6 {[%emt 0:00:02]} 57. Rc6+ {[%emt 0:00:03]} Kf7 {[%emt 0:00:07]} 58. Rc7+ {[%emt 0:00:02]} Kf6 {[%emt 0:00:02]} 59. Rc6+ {[%emt 0:00:02]} Kg5 {[%emt 0:00:01]} 60. Rc5+ {[%emt 0:00:15]} Kh4 {[%emt 0:00:02]} 61. Rc8 {[%emt 0:00:10]} g5 {[%emt 0:00:10]} 62. Rh8+ {[%emt 0:00:14]} Kg3 {[%emt 0:00:01]} 63. Rg8 {[%emt 0:00:01]} Rf5 {[%emt 0:00:16]} 64. Kxa4 {[%emt 0:00:07]} Kxf3 {[%emt 0:00:01]} 65. Kb4 {[%emt 0:00:04]} g4 {[%emt 0:00:05]} 66. c4 {[%emt 0:00:02]} g3 {[%emt 0:00:06]} 67. c5 {[%emt 0:00:04]} g2 {[%emt 0:00:04]} 68. c6 {[%emt 0:00:05]} Rf4+ {[%emt 0:00:08]} 69. Kb5 {[%emt 0:00:03]} Rg4 {[%emt 0:00:08]} 70. Rf8+ {[%emt 0:00:02]} Kg3 {[%emt 0:00:03]} 71. c7 {[%emt 0:00:09]} g1=Q {[%emt 0:00:03]} 72. c8=Q {[%emt 0:00:03]} Qb1+ {[%emt 0:00:06]} 73. Ka5 {[%emt 0:00:12]} Qb4+ {[%emt 0:00:05]} 74. Ka6 {[%emt 0:00:03]} Rg6+ {[%emt 0:00:07]} 75. Ka7 {[%emt 0:00:10]} Qb6+ {[%emt 0:00:03]} 76. Ka8 {[%emt 0:00:06]} Qa5+ {[%emt 0:00:02]} 77. Kb8 {[%emt 0:00:10]} Rb6+ {[%emt 0:00:06]} 78. Kc7 {[%emt 0:00:02]} Rg6+ {[%emt 0:00:08]} 79. Kd7 {[%emt 0:00:17]} Qd5+ {[%emt 0:00:05]} 80. Ke7 {[%emt 0:00:17]} Rg7+ {[%emt 0:00:04]} 81. Kf6 {[%emt 0:00:09]} Qg5+ {[%emt 0:00:01]} 82. Ke6 {[%emt 0:00:01]} Rg6+ {[%emt 0:00:04]} 83. Kd7 {[%emt 0:00:06]} Qd5+ {[%emt 0:00:02]} 84. Ke7 {[%emt 0:00:01]} Qe5+ {[%emt 0:00:08]} 85. Kd7 {[%emt 0:00:17]} Rd6+ {[%emt 0:00:02]} 86. Kc7 {[%emt 0:00:08]} Qc5+ {[%emt 0:00:01]} 87. Kb7 {[%emt 0:00:05]} Rb6+ {[%emt 0:00:01]} 88. Ka7 {[%emt 0:00:07]} Qa5+ {[%emt 0:00:05]} 89. Qa6 {[%emt 0:00:06]} Qxa6# {[%emt 0:00:01]} 0-1

[Event "2nd FIDE WCC Rapid G10"]
[Site "Minsk"]
[Date "2018.06.22"]
[Round "4"]
[White "Shvedova, Alexandra"]
[Black "Satanovskaia, Evgeniia"]
[Result "1-0"]
[ECO "C54"]
[WhiteElo "1758"]
[BlackElo "1384"]
[Annotator "NA RC"]
[PlyCount "95"]
[EventDate "2018.06.22"]
[EventType "rapid"]
[EventCountry "BLR"]
[SourceTitle "playchess.com"]
[Source "ChessBase"]
[SourceQuality "1"]
[TimeControl "600+5"]

1. e4 {[%emt 0:00:00]} e5 {[%emt 0:00:01]} 2. Nf3 {[%emt 0:00:00]} Nc6 {[%emt 0:00:01]} 3. Bc4 {[%emt 0:00:00]} Bc5 {[%emt 0:00:04]} 4. c3 {[%emt 0:00:00]} Nf6 {[%emt 0:00:03]} 5. d4 {[%emt 0:00:00]} exd4 {[%emt 0:00:03]} 6. e5 {[%emt 0:00:01]} Ng8 {[%emt 0:02:38]} 7. cxd4 {[%emt 0:00:01]} Bb4+ {[%emt 0:00:01]} 8. Bd2 {[%emt 0:00:01]} Bxd2+ {[%emt 0:00:01]} 9. Qxd2 {[%emt 0:00:02]} Nge7 {[%emt 0:00:11]} 10. Ng5 {[%emt 0:00:56]} O-O {[%emt 0:00:26]} 11. Qf4 {[%emt 0:00:02]} Ng6 {[%emt 0:01:59]} 12. Bxf7+ {[%emt 0:00:30]} Kh8 {[%emt 0:00:24]} 13. Qd2 {[%emt 0:00:08]} Nxd4 {[%emt 0:00:34]} 14. Bxg6 {[%emt 0:00:30]} hxg6 {[%emt 0:00:27]} 15. O-O {[%emt 0:00:02]} Nc2 {[%emt 0:01:25]} 16. Qxc2 {[%emt 0:00:03]} Qxg5 {[%emt 0:00:03]} 17. Qxc7 {[%emt 0:00:18]} b6 {[%emt 0:00:36]} 18. Qd6 {[%emt 0:00:31]} Bb7 {[%emt 0:00:30]} 19. f3 {[%emt 0:00:12]} Bc6 {[%emt 0:00:57]} 20. Nd2 Rfe8 {[%emt 0:00:43]} 21. Rfe1 {[%emt 0:01:27]} Re6 {[%emt 0:00:11]} 22. Qd4 {[%emt 0:00:02]} Rae8 {[%emt 0:00:11]} 23. Qf2 {[%emt 0:00:48]} Rxe5 {[%emt 0:00:15]} 24. Rxe5 {[%emt 0:00:02]} Qxe5 {[%emt 0:00:04]} 25. Nc4 {[%emt 0:01:14]} Qd5 {[%emt 0:00:08]} 26. Ne3 Qd4 {[%emt 0:00:01]} 27. Ng4 {[%emt 0:00:30]} Qd5 {[%emt 0:00:04]} 28. a3 {[%emt 0:00:44]} Kg8 {[%emt 0:00:08]} 29. Qc2 {[%emt 0:00:28]} Qd6 {[%emt 0:00:05]} 30. Rd1 {[%emt 0:00:09]} Qe6 {[%emt 0:00:03]} 31. Qd3 {[%emt 0:00:45]} Qf5 {[%emt 0:00:02]} 32. Ne3 {[%emt 0:00:17]} Qe6 {[%emt 0:00:03]} 33. Qc4 {[%emt 0:00:08]} Qxc4 {[%emt 0:00:05]} 34. Nxc4 {[%emt 0:00:01]} Re2 {[%emt 0:00:06]} 35. Rd2 {[%emt 0:00:18]} Re1+ {[%emt 0:00:06]} 36. Kf2 {[%emt 0:00:03]} Rc1 {[%emt 0:00:02]} 37. Ne5 {[%emt 0:00:06]} Kh7 {[%emt 0:00:12]} 38. Kg3 {[%emt 0:00:17]} Rc5 {[%emt 0:00:02]} 39. Nxd7 {[%emt 0:00:02]} Rd5 {[%emt 0:00:07]} 40. Rxd5 {[%emt 0:00:06]} Bxd5 {[%emt 0:00:01]} 41. Ne5 {[%emt 0:00:04]} Bb3 {[%emt 0:00:15]} 42. Kf4 {[%emt 0:00:04]} Bc2 {[%emt 0:00:02]} 43. Nc6 {[%emt 0:00:10]} a6 {[%emt 0:00:03]} 44. Nb4 {[%emt 0:00:01]} Ba4 {[%emt 0:00:12]} 45. Nxa6 {[%emt 0:00:02]} Bc2 {[%emt 0:00:03]} 46. Nb4 {[%emt 0:00:03]} Bd1 {[%emt 0:00:03]} 47. Nd5 {[%emt 0:00:03]} Be2 {[%emt 0:00:00]} 48. Nxb6 {[%emt 0:00:01]} 1-0

[Event "2nd FIDE WCC Rapid G10"]
[Site "Minsk"]
[Date "2018.06.22"]
[Round "4"]
[White "Shukhman, Anna"]
[Black "Zhapova, Yana"]
[Result "1-0"]
[ECO "B10"]
[WhiteElo "1577"]
[BlackElo "1597"]
[Annotator "NA RC"]
[PlyCount "155"]
[EventDate "2018.06.22"]
[EventType "rapid"]
[EventCountry "BLR"]
[SourceTitle "playchess.com"]
[Source "ChessBase"]
[SourceQuality "1"]
[TimeControl "600+5"]

1. e4 {[%emt 0:00:00]} c6 {[%emt 0:00:00]} 2. Nc3 {[%emt 0:00:00]} d5 {[%emt 0:00:01]} 3. Nf3 {[%emt 0:00:01]} dxe4 {[%emt 0:00:03]} 4. Nxe4 {[%emt 0:00:01]} Nf6 {[%emt 0:00:01]} 5. Qe2 {[%emt 0:00:05]} e6 {[%emt 0:00:46]} 6. g3 {[%emt 0:00:10]} Nbd7 {[%emt 0:00:11]} 7. Bg2 {[%emt 0:00:03]} Nxe4 {[%emt 0:00:06]} 8. Qxe4 {[%emt 0:00:02]} Nf6 {[%emt 0:00:01]} 9. Qe2 {[%emt 0:00:03]} Be7 {[%emt 0:00:04]} 10. O-O {[%emt 0:00:03]} O-O {[%emt 0:00:02]} 11. d4 {[%emt 0:00:03]} Bd7 {[%emt 0:01:37]} 12. Ne5 {[%emt 0:01:19]} Qc8 {[%emt 0:01:20]} 13. c4 {[%emt 0:01:03]} Rd8 {[%emt 0:01:02]} 14. Bf4 {[%emt 0:00:26]} c5 {[%emt 0:00:37]} 15. d5 {[%emt 0:00:55]} exd5 {[%emt 0:01:07]} 16. cxd5 {[%emt 0:00:15]} Bf8 {[%emt 0:00:10]} 17. Rfe1 {[%emt 0:01:33]} a6 {[%emt 0:00:14]} 18. Rad1 {[%emt 0:00:29]} Bb5 {[%emt 0:00:31]} 19. Qf3 {[%emt 0:00:39]} Qf5 {[%emt 0:00:52]} 20. Bf1 {[%emt 0:01:55]} Bxf1 21. Rxf1 {[%emt 0:00:01]} g5 {[%emt 0:00:33]} 22. Bd2 {[%emt 0:00:55]} Qxe5 {[%emt 0:00:53]} 23. Bc3 {[%emt 0:00:01]} Qd6 {[%emt 0:00:16]} 24. Qxf6 {[%emt 0:00:25]} Qxf6 {[%emt 0:00:03]} 25. Bxf6 {[%emt 0:00:01]} Re8 {[%emt 0:00:01]} 26. Bxg5 {[%emt 0:00:02]} Re2 {[%emt 0:00:01]} 27. d6 {[%emt 0:00:09]} h6 {[%emt 0:00:34]} 28. Bh4 {[%emt 0:00:06]} f6 {[%emt 0:00:24]} 29. Bxf6 {[%emt 0:00:12]} Re6 {[%emt 0:00:01]} 30. Bc3 {[%emt 0:00:20]} Bxd6 {[%emt 0:00:04]} 31. Rfe1 {[%emt 0:00:02]} Rae8 {[%emt 0:00:04]} 32. Kg2 {[%emt 0:00:14]} b5 {[%emt 0:00:04]} 33. Rxd6 {[%emt 0:00:21]} Rxe1 {[%emt 0:00:02]} 34. Bxe1 {[%emt 0:00:01]} Rxe1 {[%emt 0:00:01]} 35. Rxa6 {[%emt 0:00:03]} Re2 {[%emt 0:00:06]} 36. b3 {[%emt 0:00:07]} Kg7 {[%emt 0:00:01]} 37. Ra5 {[%emt 0:00:03]} c4 {[%emt 0:00:22]} 38. Rxb5 {[%emt 0:00:29]} c3 {[%emt 0:00:11]} 39. Rc5 {[%emt 0:00:01]} c2 {[%emt 0:00:02]} 40. Kf3 {[%emt 0:00:01]} Rd2 {[%emt 0:00:09]} 41. Ke3 {[%emt 0:00:02]} c1=Q {[%emt 0:00:06]} 42. Rxc1 {[%emt 0:00:01]} Rxa2 43. Rb1 {[%emt 0:00:03]} Ra3 {[%emt 0:00:06]} 44. Ke2 {[%emt 0:00:02]} Ra2+ {[%emt 0:00:01]} 45. Kf1 {[%emt 0:00:01]} Kf6 {[%emt 0:00:03]} 46. Kg2 {[%emt 0:00:03]} Ke5 {[%emt 0:00:02]} 47. b4 {[%emt 0:00:02]} Kd5 {[%emt 0:00:05]} 48. Rd1+ {[%emt 0:00:02]} Ke6 {[%emt 0:00:17]} 49. Rc1 {[%emt 0:00:07]} Rb2 {[%emt 0:00:02]} 50. Rc6+ {[%emt 0:00:02]} Kf5 {[%emt 0:00:04]} 51. Rxh6 {[%emt 0:00:02]} Rxb4 {[%emt 0:00:00]} 52. Ra6 {[%emt 0:00:03]} Rb2 {[%emt 0:00:04]} 53. Ra5+ {[%emt 0:00:03]} Kg6 {[%emt 0:00:02]} 54. h4 {[%emt 0:00:02]} Rc2 {[%emt 0:00:04]} 55. Ra4 {[%emt 0:00:04]} Rd2 {[%emt 0:00:08]} 56. Rf4 {[%emt 0:00:02]} Ra2 {[%emt 0:00:04]} 57. g4 {[%emt 0:00:04]} Rb2 {[%emt 0:00:11]} 58. Kg3 {[%emt 0:00:02]} Rb3+ 59. f3 {[%emt 0:00:01]} Rb1 {[%emt 0:00:03]} 60. h5+ {[%emt 0:00:12]} Kg7 {[%emt 0:00:02]} 61. Rf5 {[%emt 0:00:08]} Rh1 {[%emt 0:00:05]} 62. Rg5+ {[%emt 0:00:16]} Kh6 {[%emt 0:00:08]} 63. Rg6+ {[%emt 0:00:03]} Kh7 {[%emt 0:00:01]} 64. Kf4 {[%emt 0:00:02]} Ra1 {[%emt 0:00:11]} 65. Re6 {[%emt 0:00:05]} Rh1 {[%emt 0:00:11]} 66. Kg5 {[%emt 0:00:05]} Ra1 {[%emt 0:00:02]} 67. Re7+ {[%emt 0:00:09]} Kg8 {[%emt 0:00:06]} 68. f4 {[%emt 0:00:01]} Ra5+ {[%emt 0:00:04]} 69. f5 {[%emt 0:00:01]} Ra4 {[%emt 0:00:03]} 70. h6 {[%emt 0:00:11]} Ra6 {[%emt 0:00:05]} 71. f6 {[%emt 0:00:09]} Ra1 {[%emt 0:00:11]} 72. Kg6 {[%emt 0:00:16]} Kf8 {[%emt 0:00:01]} 73. h7 {[%emt 0:00:11]} Rh1 {[%emt 0:00:04]} 74. Rg7 {[%emt 0:00:03]} Rxh7 {[%emt 0:00:34]} 75. Rxh7 {[%emt 0:00:06]} Ke8 {[%emt 0:00:03]} 76. f7+ {[%emt 0:00:07]} Ke7 {[%emt 0:00:01]} 77. Rh8 {[%emt 0:00:04]} Ke6 {[%emt 0:00:02]} 78. f8=Q {[%emt 0:00:04]} 1-0

[Event "2nd FIDE WCC Rapid G10"]
[Site "Minsk"]
[Date "2018.06.22"]
[Round "4"]
[White "Marchenko, Yelyzaveta"]
[Black "Szczotka, Klara"]
[Result "0-1"]
[ECO "A80"]
[WhiteElo "1510"]
[BlackElo "1465"]
[Annotator "NA RC"]
[PlyCount "140"]
[EventDate "2018.06.22"]
[EventType "rapid"]
[EventCountry "BLR"]
[SourceTitle "playchess.com"]
[Source "ChessBase"]
[SourceQuality "1"]
[TimeControl "600+5"]

1. d4 {[%emt 0:00:00]} f5 {[%emt 0:00:01]} 2. Bf4 {[%emt 0:00:00]} Nf6 {[%emt 0:00:02]} 3. Nf3 {[%emt 0:00:00]} g6 {[%emt 0:00:01]} 4. e3 {[%emt 0:00:00]} Bg7 {[%emt 0:00:01]} 5. c4 {[%emt 0:00:06]} O-O {[%emt 0:00:03]} 6. Nc3 {[%emt 0:00:02]} d6 {[%emt 0:00:02]} 7. Be2 {[%emt 0:00:05]} Qe8 {[%emt 0:00:14]} 8. O-O {[%emt 0:00:07]} c6 {[%emt 0:00:08]} 9. Qd2 {[%emt 0:00:16]} Nbd7 {[%emt 0:00:05]} 10. h3 {[%emt 0:00:18]} e5 {[%emt 0:00:05]} 11. Bh2 {[%emt 0:00:11]} h6 {[%emt 0:00:39]} 12. dxe5 {[%emt 0:01:14]} dxe5 {[%emt 0:00:01]} 13. Qd6 {[%emt 0:00:10]} Nh7 {[%emt 0:01:12]} 14. c5 {[%emt 0:01:56]} Rf6 {[%emt 0:00:21]} 15. Bc4+ {[%emt 0:00:28]} Kh8 {[%emt 0:00:01]} 16. Qd2 {[%emt 0:00:01]} e4 {[%emt 0:00:38]} 17. Nd4 {[%emt 0:00:36]} Nxc5 {[%emt 0:00:25]} 18. b4 {[%emt 0:00:09]} Ne6 {[%emt 0:00:28]} 19. Nxe6 {[%emt 0:01:20]} Bxe6 {[%emt 0:00:01]} 20. Bxe6 {[%emt 0:00:08]} Qxe6 {[%emt 0:00:03]} 21. Rad1 {[%emt 0:00:17]} Rff8 {[%emt 0:00:07]} 22. Ne2 {[%emt 0:00:15]} Rfd8 {[%emt 0:00:07]} 23. Qxd8+ {[%emt 0:00:02]} Rxd8 {[%emt 0:00:01]} 24. Rxd8+ {[%emt 0:00:01]} Bf8 {[%emt 0:00:18]} 25. a3 {[%emt 0:00:15]} Kg7 {[%emt 0:00:07]} 26. Rfd1 {[%emt 0:00:03]} Nf6 {[%emt 0:00:05]} 27. Nf4 {[%emt 0:00:17]} Qf7 {[%emt 0:00:27]} 28. Bg3 {[%emt 0:00:25]} g5 {[%emt 0:00:06]} 29. Ne2 {[%emt 0:00:01]} Be7 {[%emt 0:00:28]} 30. R8d2 {[%emt 0:00:07]} Nd5 {[%emt 0:00:08]} 31. Be5+ {[%emt 0:00:05]} Bf6 {[%emt 0:00:07]} 32. Bxf6+ {[%emt 0:00:10]} Qxf6 {[%emt 0:00:05]} 33. Nd4 {[%emt 0:00:05]} f4 {[%emt 0:00:27]} 34. exf4 {[%emt 0:00:05]} gxf4 {[%emt 0:00:01]} 35. b5 {[%emt 0:00:35]} Nc3 {[%emt 0:00:22]} 36. Rc1 {[%emt 0:00:00]} Nxb5 {[%emt 0:00:39]} 37. Nxb5 {[%emt 0:00:02]} cxb5 {[%emt 0:00:01]} 38. Rd7+ {[%emt 0:00:01]} Kg6 {[%emt 0:00:07]} 39. Rxb7 {[%emt 0:00:01]} Qa6 {[%emt 0:00:23]} 40. Rc3 {[%emt 0:00:13]} Qd6 {[%emt 0:00:14]} 41. Rbc7 {[%emt 0:00:12]} Qd1+ 42. Kh2 {[%emt 0:00:02]} Qe2 {[%emt 0:00:41]} 43. R3c6+ {[%emt 0:00:08]} Kf5 {[%emt 0:00:04]} 44. Rc2 {[%emt 0:00:05]} Qd3 {[%emt 0:00:06]} 45. R7c6 {[%emt 0:00:03]} Ke5 {[%emt 0:00:13]} 46. R2c3 {[%emt 0:00:47]} Qd7 {[%emt 0:00:25]} 47. Rc1 {[%emt 0:00:20]} e3 {[%emt 0:00:29]} 48. fxe3 {[%emt 0:00:01]} fxe3 {[%emt 0:00:01]} 49. R6c2 {[%emt 0:00:25]} Ke4 {[%emt 0:00:12]} 50. g3 {[%emt 0:00:24]} Qd3 {[%emt 0:00:24]} 51. Rg2 {[%emt 0:00:23]} Qxa3 {[%emt 0:00:27]} 52. g4 {[%emt 0:00:06]} Qxc1 {[%emt 0:00:01]} 53. h4 {[%emt 0:00:02]} Qd2 {[%emt 0:00:04]} 54. g5 Qxg2+ {[%emt 0:00:14]} 55. Kxg2 {[%emt 0:00:08]} hxg5 {[%emt 0:00:00]} 56. h5 {[%emt 0:00:01]} Kf5 {[%emt 0:00:03]} 57. h6 {[%emt 0:00:04]} Kg6 {[%emt 0:00:00]} 58. Kf1 {[%emt 0:00:03]} Kxh6 {[%emt 0:00:01]} 59. Ke2 {[%emt 0:00:00]} g4 {[%emt 0:00:02]} 60. Kxe3 {[%emt 0:00:02]} Kg5 {[%emt 0:00:00]} 61. Kf2 {[%emt 0:00:01]} Kf4 {[%emt 0:00:01]} 62. Kg2 {[%emt 0:00:01]} b4 {[%emt 0:00:01]} 63. Kf2 {[%emt 0:00:01]} b3 {[%emt 0:00:00]} 64. Kg2 {[%emt 0:00:01]} b2 {[%emt 0:00:01]} 65. Kf2 {[%emt 0:00:02]} b1=Q {[%emt 0:00:03]} 66. Kg2 {[%emt 0:00:02]} Qc2+ {[%emt 0:00:01]} 67. Kf1 {[%emt 0:00:02]} Qd1+ {[%emt 0:00:01]} 68. Kg2 {[%emt 0:00:02]} Qe2+ {[%emt 0:00:01]} 69. Kg1 {[%emt 0:00:01]} Kg3 {[%emt 0:00:02]} 70. Kh1 {[%emt 0:00:02]} Qf1# {[%emt 0:00:01]} 0-1